[Event "18th Charleroi Experts 2019"]
[Site "Charleroi"]
[Date "2019.07.29"]
[Round "3.5"]
[White "Real, Thibault"]
[Black "Van der Stricht, Geert"]
[Result "0-1"]
[ECO "D00"]
[WhiteElo "2262"]
[BlackElo "2374"]
[Annotator "ChessBase"]
[PlyCount "108"]
[EventDate "2019.07.22"]
[EventType "tourn"]
[EventCountry "BEL"]
[SourceTitle "playchess.com"]
[Source "ChessBase"]
[SourceQuality "1"]
[TimeControl "40/5400+30:1800+30"]

1. d4 {[%emt 0:04:33]} Nf6 {[%emt 0:00:00]} 2. Bf4 {[%emt 0:00:06]} d5 {[%emt 0:00:18]} 3. e3 {[%emt 0:00:05]} Bg4 {[%emt 0:00:14]} 4. f3 {[%emt 0:00:45]} Bd7 {[%emt 0:00:25]} 5. Bd3 {[%emt 0:15:50]} c5 {[%emt 0:02:20]} 6. c3 {[%emt 0:00:47]} e6 {[%emt 0:03:10]} 7. Ne2 {[%emt 0:11:43]} Nc6 {[%emt 0:04:40]} 8. Bg3 {[%emt 0:10:41]} Qb6 {[%emt 0:04:30]} 9. b3 {[%emt 0:04:14]} Be7 {[%emt 0:03:15]} 10. O-O {[%emt 0:00:55]} O-O {[%emt 0:00:47]} 11. Kh1 {[%emt 0:05:11]} g6 {[%emt 0:04:18]} 12. a3 {[%emt 0:09:42]} a5 {[%emt 0:23:55]} 13. a4 {[%emt 0:00:28]} Nh5 {[%emt 0:01:09]} 14. Bf2 {[%emt 0:00:45]} e5 {[%emt 0:01:29]} 15. Bb5 {[%emt 0:01:29]} exd4 {[%emt 0:15:59]} 16. exd4 {[%emt 0:01:43]} cxd4 {[%emt 0:03:51]} 17. Nxd4 {[%emt 0:02:41]} Bc5 {[%emt 0:01:40]} 18. Na3 {[%emt 0:01:39]} Nxd4 {[%emt 0:06:37]} 19. Bxd4 {[%emt 0:18:25]} Bxd4 {[%emt 0:01:02]} 20. cxd4 {[%emt 0:00:46]} Be6 {[%emt 0:01:23]} 21. Qd2 {[%emt 0:00:36]} Ng7 {[%emt 0:00:51]} 22. Rfc1 {[%emt 0:02:58]} Rfc8 {[%emt 0:02:57]} 23. Bf1 {[%emt 0:03:01]} Rxc1 {[%emt 0:04:10]} 24. Qxc1 {[%emt 0:00:22]} Qxd4 {[%emt 0:01:46]} 25. Nb5 {[%emt 0:00:15]} Qe5 {[%emt 0:05:38]} 26. Ra2 {[%emt 0:01:59]} Rc8 {[%emt 0:01:24]} 27. Qd1 {[%emt 0:00:04]} Nf5 {[%emt 0:00:34]} 28. Re2 {[%emt 0:00:17]} Qf4 {[%emt 0:01:13]} 29. g3 {[%emt 0:01:15]} Qxf3+ {[%emt 0:03:04]} 30. Bg2 {[%emt 0:00:05]} Rc1 {[%emt 0:00:32]} 31. Bxf3 {[%emt 0:00:43]} Rxd1+ {[%emt 0:00:05]} 32. Kg2 {[%emt 0:00:06]} Rb1 {[%emt 0:01:01]} 33. Rd2 {[%emt 0:01:49]} Rxb3 {[%emt 0:00:23]} 34. Nc7 {[%emt 0:00:13]} Rb4 {[%emt 0:01:09]} 35. Nxd5 {[%emt 0:00:29]} Bxd5 {[%emt 0:00:34]} 36. Bxd5 {[%emt 0:00:05]} Ne3+ {[%emt 0:00:25]} 37. Kf3 {[%emt 0:00:35]} Nxd5 {[%emt 0:00:23]} 38. Rxd5 {[%emt 0:00:05]} b6 {[%emt 0:00:30]} 39. Rd6 {[%emt 0:00:10]} h5 {[%emt 0:00:17]} 40. Rc6 {[%emt 0:00:10]} Kg7 {[%emt 0:00:12]} 41. h4 {[%emt 0:30:34]} Kf8 {[%emt 0:31:01]} 42. Kg2 {[%emt 0:01:08]} Ke7 {[%emt 0:00:28]} 43. Kf3 {[%emt 0:00:20]} b5 {[%emt 0:00:58]} 44. axb5 {[%emt 0:00:05]} Rxb5 {[%emt 0:00:05]} 45. Ra6 {[%emt 0:00:05]} Rf5+ {[%emt 0:00:09]} 46. Kg2 {[%emt 0:01:06]} Kd7 {[%emt 0:00:06]} 47. Ra8 {[%emt 0:00:00]} Kc7 {[%emt 0:00:00]} 48. Re8 {[%emt 0:00:00]} Kb7 {[%emt 0:00:00]} 49. Rd8 {[%emt 0:00:00]} a4 {[%emt 0:00:00]} 50. Rd7+ {[%emt 0:00:00]} Kb6 {[%emt 0:00:00]} 51. Rd6+ {[%emt 0:00:00]} Kb5 {[%emt 0:00:00]} 52. Rd8 {[%emt 0:00:00]} a3 {[%emt 0:00:00]} 53. Ra8 {[%emt 0:00:00]} Kb4 {[%emt 0:00:00]} 54. Ra7 {[%emt 0:00:00]} Ra5 {[%emt 0:00:00]} 0-1

[Event "18th Charleroi Experts 2019"]
[Site "Charleroi"]
[Date "2019.07.29"]
[Round "4.4"]
[White "Hamblok, Roel"]
[Black "Lenaerts, Lennert"]
[Result "1/2-1/2"]
[ECO "E14"]
[WhiteElo "2261"]
[BlackElo "2355"]
[Annotator "NA"]
[PlyCount "41"]
[EventDate "2019.07.22"]
[EventType "tourn"]
[EventCountry "BEL"]
[SourceTitle "playchess.com"]
[Source "ChessBase"]
[SourceQuality "1"]
[TimeControl "40/5400+30:1800+30"]

1. Nf3 {[%emt 0:00:00]} d5 {[%emt 0:05:30]} 2. e3 {[%emt 0:00:23]} Nf6 {[%emt 0:00:50]} 3. c4 {[%emt 0:00:07]} e6 {[%emt 0:02:11]} 4. d4 {[%emt 0:02:02]} Be7 {[%emt 0:03:26]} 5. Nc3 {[%emt 0:10:58]} O-O {[%emt 0:00:17]} 6. b3 {[%emt 0:03:36]} b6 {[%emt 0:03:59]} 7. Bb2 {[%emt 0:01:57]} Bb7 {[%emt 0:00:09]} 8. cxd5 {[%emt 0:04:31]} exd5 {[%emt 0:00:35]} 9. Bd3 {[%emt 0:04:00]} Nbd7 {[%emt 0:13:23]} 10. O-O {[%emt 0:01:07]} a6 {[%emt 0:01:36]} 11. Rc1 {[%emt 0:12:15]} Bd6 {[%emt 0:00:13]} 12. Ne2 {[%emt 0:01:11]} Ne4 {[%emt 0:05:45]} 13. Qc2 {[%emt 0:08:40]} Rc8 {[%emt 0:07:06]} 14. Ng3 {[%emt 0:10:16]} f5 {[%emt 0:04:08]} 15. Qe2 {[%emt 0:07:13]} Ra8 {[%emt 0:02:50]} 16. Ne5 {[%emt 0:02:51]} Qe7 {[%emt 0:01:54]} 17. f4 {[%emt 0:04:29]} Qe6 {[%emt 0:12:17]} 18. Qh5 {[%emt 0:07:10]} g6 {[%emt 0:11:33]} 19. Qh3 {[%emt 0:02:00]} Ndf6 {[%emt 0:02:18]} 20. Nxe4 {[%emt 0:03:16]} Nxe4 {[%emt 0:03:03]} 21. Kh1 {[%emt 0:12:28]} 1/2-1/2

[Event "18th Charleroi Experts 2019"]
[Site "Charleroi"]
[Date "2019.07.30"]
[Round "5.1"]
[White "Sterck, Arno"]
[Black "Cools, Gorik"]
[Result "1-0"]
[ECO "C55"]
[WhiteElo "2316"]
[BlackElo "2280"]
[Annotator "NA"]
[PlyCount "63"]
[EventDate "2019.07.22"]
[EventType "tourn"]
[EventCountry "BEL"]
[SourceTitle "playchess.com"]
[Source "ChessBase"]
[SourceQuality "1"]
[TimeControl "40/5400+30:1800+30"]

1. e4 {[%emt 0:02:41]} e5 {[%emt 0:00:00]} 2. Nf3 {[%emt 0:00:05]} Nc6 {[%emt 0:00:00]} 3. Bc4 {[%emt 0:00:04]} Nf6 {[%emt 0:00:09]} 4. d3 {[%emt 0:00:04]} Be7 {[%emt 0:00:13]} 5. O-O {[%emt 0:00:04]} O-O {[%emt 0:00:14]} 6. Re1 {[%emt 0:00:02]} d6 {[%emt 0:00:12]} 7. a4 {[%emt 0:00:03]} Rb8 {[%emt 0:02:56]} 8. c3 {[%emt 0:01:23]} Bg4 {[%emt 0:19:14]} 9. Nbd2 {[%emt 0:01:34]} d5 {[%emt 0:09:17]} 10. exd5 {[%emt 0:00:24]} Nxd5 {[%emt 0:00:09]} 11. h3 {[%emt 0:02:52]} Bh5 {[%emt 0:00:07]} 12. Ne4 {[%emt 0:01:59]} Kh8 {[%emt 0:04:24]} 13. Ng3 {[%emt 0:02:27]} Bg6 {[%emt 0:00:09]} 14. a5 {[%emt 0:11:39]} Qd6 {[%emt 0:39:30]} 15. Ne4 {[%emt 0:09:16]} Qd7 {[%emt 0:00:09]} 16. Bb5 {[%emt 0:00:10]} Bd6 {[%emt 0:13:20]} 17. d4 {[%emt 0:20:47]} Bxe4 {[%emt 0:00:56]} 18. Rxe4 {[%emt 0:01:51]} Nf6 {[%emt 0:00:02]} 19. Nxe5 {[%emt 0:01:55]} Qf5 {[%emt 0:03:36]} 20. Rf4 {[%emt 0:01:53]} Qe6 {[%emt 0:00:50]} 21. Bc4 {[%emt 0:02:44]} Qe8 {[%emt 0:01:02]} 22. Nxc6 {[%emt 0:07:11]} Qxc6 {[%emt 0:00:01]} 23. d5 {[%emt 0:00:07]} Qd7 {[%emt 0:00:01]} 24. Rf3 {[%emt 0:00:05]} Rfe8 {[%emt 0:00:23]} 25. Be3 {[%emt 0:01:40]} a6 {[%emt 0:02:11]} 26. Bb3 {[%emt 0:03:14]} h6 {[%emt 0:00:38]} 27. Bxh6 {[%emt 0:01:01]} gxh6 {[%emt 0:00:31]} 28. Rxf6 {[%emt 0:00:07]} Kg7 {[%emt 0:00:02]} 29. Rf3 {[%emt 0:03:13]} Re5 {[%emt 0:00:24]} 30. Qd4 {[%emt 0:03:27]} Rbe8 {[%emt 0:00:41]} 31. Ba4 {[%emt 0:01:54]} f6 {[%emt 0:00:45]} 32. Rg3+ {[%emt 0:00:12]} 1-0

[Event "18th Charleroi Experts 2019"]
[Site "Charleroi"]
[Date "2019.07.30"]
[Round "5.2"]
[White "Lenaerts, Lennert"]
[Black "Dardha, Daniel"]
[Result "1/2-1/2"]
[ECO "A60"]
[WhiteElo "2355"]
[BlackElo "2420"]
[Annotator "NA"]
[PlyCount "104"]
[EventDate "2019.07.22"]
[EventType "tourn"]
[EventCountry "BEL"]
[SourceTitle "playchess.com"]
[Source "ChessBase"]
[SourceQuality "1"]
[TimeControl "40/5400+30:1800+30"]

1. d4 {[%emt 0:01:37]} Nf6 {[%emt 0:00:00]} 2. c4 {[%emt 0:00:06]} c5 {[%emt 0:00:00]} 3. d5 {[%emt 0:00:08]} e6 {[%emt 0:00:00]} 4. Nc3 {[%emt 0:00:23]} exd5 {[%emt 0:00:00]} 5. cxd5 {[%emt 0:00:05]} Bd6 {[%emt 0:00:08]} 6. e4 {[%emt 0:03:35]} O-O {[%emt 0:00:22]} 7. Bd3 {[%emt 0:21:55]} Bc7 {[%emt 0:00:41]} 8. Nf3 {[%emt 0:03:53]} d6 {[%emt 0:00:41]} 9. h3 {[%emt 0:01:08]} a6 {[%emt 0:00:13]} 10. a4 {[%emt 0:00:44]} Nbd7 {[%emt 0:05:51]} 11. O-O {[%emt 0:02:11]} Re8 {[%emt 0:01:01]} 12. Re1 {[%emt 0:01:37]} Nf8 {[%emt 0:00:54]} 13. Bf4 {[%emt 0:03:22]} Ng6 {[%emt 0:03:01]} 14. Bh2 {[%emt 0:00:09]} Rb8 {[%emt 0:00:59]} 15. Nd2 {[%emt 0:02:26]} Ne5 {[%emt 0:06:05]} 16. Bf1 {[%emt 0:00:44]} Bd7 {[%emt 0:00:54]} 17. f4 {[%emt 0:01:13]} Ng6 {[%emt 0:00:35]} 18. a5 {[%emt 0:06:45]} Kh8 {[%emt 0:19:59]} 19. Nc4 {[%emt 0:01:37]} Bb5 {[%emt 0:01:01]} 20. Nxb5 {[%emt 0:01:29]} axb5 {[%emt 0:00:22]} 21. Nxd6 {[%emt 0:01:34]} Qxd6 {[%emt 0:10:54]} 22. e5 {[%emt 0:00:05]} Qd8 {[%emt 0:01:13]} 23. exf6 {[%emt 0:00:52]} Qxf6 {[%emt 0:00:09]} 24. Rxe8+ {[%emt 0:01:40]} Rxe8 {[%emt 0:00:07]} 25. Bxb5 {[%emt 0:00:08]} Rd8 {[%emt 0:03:02]} 26. Qd2 {[%emt 0:10:38]} h5 {[%emt 0:12:05]} 27. a6 {[%emt 0:04:59]} bxa6 {[%emt 0:00:16]} 28. Rxa6 {[%emt 0:00:21]} Qf5 {[%emt 0:05:57]} 29. Bc4 {[%emt 0:12:22]} Qe4 {[%emt 0:06:14]} 30. Qd3 {[%emt 0:04:07]} Qxd3 {[%emt 0:06:21]} 31. Bxd3 {[%emt 0:00:07]} Nxf4 {[%emt 0:01:52]} 32. Bc4 {[%emt 0:02:15]} Nxd5 {[%emt 0:01:14]} 33. Bxc7 {[%emt 0:00:23]} Nxc7 {[%emt 0:00:03]} 34. Rc6 {[%emt 0:00:09]} Rd1+ {[%emt 0:01:48]} 35. Kh2 {[%emt 0:00:06]} Ne6 {[%emt 0:00:20]} 36. Bxe6 {[%emt 0:00:18]} fxe6 {[%emt 0:00:06]} 37. Rxc5 {[%emt 0:00:03]} g6 {[%emt 0:00:56]} 38. Rc6 {[%emt 0:00:10]} Rb1 {[%emt 0:03:22]} 39. Rxe6 {[%emt 0:00:05]} Rxb2 {[%emt 0:00:02]} 40. Rxg6 {[%emt 0:00:08]} Kh7 {[%emt 0:00:01]} 41. Re6 {[%emt 0:30:20]} Rb3 {[%emt 0:30:18]} 42. Rf6 {[%emt 0:00:17]} Kg7 {[%emt 0:00:06]} 43. Rf3 {[%emt 0:00:05]} Rb4 {[%emt 0:00:16]} 44. Re3 {[%emt 0:00:16]} Kg6 {[%emt 0:00:14]} 45. Kg3 {[%emt 0:00:06]} Rb6 {[%emt 0:00:28]} 46. Re4 {[%emt 0:00:24]} Ra6 {[%emt 0:00:12]} 47. Kf3 {[%emt 0:00:11]} Rb6 {[%emt 0:00:42]} 48. g4 {[%emt 0:00:17]} Rb3+ {[%emt 0:00:09]} 49. Re3 {[%emt 0:00:05]} hxg4+ {[%emt 0:00:04]} 50. hxg4 {[%emt 0:00:04]} Rxe3+ {[%emt 0:00:05]} 51. Kxe3 {[%emt 0:00:02]} Kg5 {[%emt 0:00:04]} 52. Ke4 {[%emt 0:00:06]} Kxg4 {[%emt 0:00:04]} 1/2-1/2

[Event "18th Charleroi Experts 2019"]
[Site "Charleroi"]
[Date "2019.07.30"]
[Round "5.3"]
[White "Hovhannisyan, Mher"]
[Black "Hamblok, Roel"]
[Result "1-0"]
[ECO "A00"]
[WhiteElo "2444"]
[BlackElo "2261"]
[Annotator "NA"]
[PlyCount "61"]
[EventDate "2019.07.22"]
[EventType "tourn"]
[EventCountry "BEL"]
[SourceTitle "playchess.com"]
[Source "ChessBase"]
[SourceQuality "1"]
[TimeControl "40/5400+30:1800+30"]

1. a3 {[%emt 0:00:24]} d5 {[%emt 0:01:02]} 2. b4 {[%emt 0:03:50]} e5 {[%emt 0:01:47]} 3. Bb2 {[%emt 0:00:40]} Bd6 {[%emt 0:00:11]} 4. e3 {[%emt 0:03:39]} Nf6 {[%emt 0:15:25]} 5. c4 {[%emt 0:01:26]} c6 {[%emt 0:04:25]} 6. Nf3 {[%emt 0:08:36]} Qe7 {[%emt 0:05:12]} 7. Qc2 {[%emt 0:05:25]} O-O {[%emt 0:01:54]} 8. Be2 {[%emt 0:05:18]} Re8 {[%emt 0:04:48]} 9. h3 {[%emt 0:05:23]} Nbd7 {[%emt 0:03:44]} 10. cxd5 {[%emt 0:02:27]} cxd5 {[%emt 0:05:07]} 11. Nc3 {[%emt 0:01:11]} a6 {[%emt 0:11:01]} 12. g4 {[%emt 0:04:46]} d4 {[%emt 0:09:11]} 13. exd4 {[%emt 0:04:54]} e4 {[%emt 0:02:46]} 14. Nh4 {[%emt 0:10:51]} Nb6 {[%emt 0:01:19]} 15. Ng2 {[%emt 0:05:40]} Nfd5 {[%emt 0:03:20]} 16. Nxd5 {[%emt 0:14:21]} Nxd5 {[%emt 0:00:36]} 17. Qb3 {[%emt 0:04:59]} Be6 {[%emt 0:07:26]} 18. Bc4 {[%emt 0:00:17]} Nf4 {[%emt 0:06:55]} 19. Nxf4 {[%emt 0:00:05]} Bxc4 {[%emt 0:00:09]} 20. Qxc4 {[%emt 0:00:03]} Bxf4 {[%emt 0:00:09]} 21. Qe2 {[%emt 0:08:57]} a5 {[%emt 0:03:40]} 22. bxa5 {[%emt 0:03:04]} Qh4 {[%emt 0:02:33]} 23. Kf1 {[%emt 0:00:56]} Rxa5 {[%emt 0:01:27]} 24. Rc1 {[%emt 0:00:10]} Ra6 {[%emt 0:02:57]} 25. Qxe4 {[%emt 0:02:21]} Kf8 {[%emt 0:04:48]} 26. Qxf4 {[%emt 0:00:11]} Rf6 {[%emt 0:00:06]} 27. Qh2 {[%emt 0:00:10]} Qg5 {[%emt 0:00:05]} 28. Bc3 {[%emt 0:01:07]} Qb5+ {[%emt 0:00:06]} 29. Kg1 {[%emt 0:00:30]} Qe2 {[%emt 0:01:02]} 30. d5 {[%emt 0:01:52]} Qd3 {[%emt 0:01:12]} 31. Bxf6 {[%emt 0:01:57]} 1-0

[Event "18th Charleroi Experts 2019"]
[Site "Charleroi"]
[Date "2019.07.30"]
[Round "5.4"]
[White "Real, Thibault"]
[Black "Dgebuadze, Alexandre"]
[Result "0-1"]
[ECO "A45"]
[WhiteElo "2262"]
[BlackElo "2495"]
[Annotator "ChessBase"]
[PlyCount "86"]
[EventDate "2019.07.22"]
[EventType "tourn"]
[EventCountry "BEL"]
[SourceTitle "playchess.com"]
[Source "ChessBase"]
[SourceQuality "1"]
[TimeControl "40/5400+30:1800+30"]

1. d4 {[%emt 0:00:00]} Nf6 {[%emt 0:00:23]} 2. Bf4 {[%emt 0:00:00]} d6 {[%emt 0:00:09]} 3. Nc3 {[%emt 0:00:00]} Nbd7 {[%emt 0:00:12]} 4. Nf3 {[%emt 0:00:35]} c5 {[%emt 0:02:43]} 5. d5 {[%emt 0:02:47]} b5 {[%emt 0:00:45]} 6. Nxb5 {[%emt 0:00:14]} Qa5+ {[%emt 0:00:23]} 7. Nc3 {[%emt 0:00:06]} Rb8 {[%emt 0:00:06]} 8. Bd2 {[%emt 0:00:04]} Rxb2 {[%emt 0:00:22]} 9. e4 {[%emt 0:00:03]} Rb7 {[%emt 0:03:55]} 10. Bc4 {[%emt 0:02:17]} g6 {[%emt 0:04:59]} 11. O-O {[%emt 0:03:05]} Bg7 {[%emt 0:01:46]} 12. h3 {[%emt 0:05:30]} O-O {[%emt 0:00:40]} 13. Qe2 {[%emt 0:02:52]} Nh5 {[%emt 0:07:25]} 14. Qd3 {[%emt 0:10:38]} Nb6 {[%emt 0:16:59]} 15. Rab1 {[%emt 0:32:55]} Nxc4 {[%emt 0:03:06]} 16. Qxc4 {[%emt 0:00:55]} Rb4 {[%emt 0:00:07]} 17. Rxb4 {[%emt 0:07:55]} cxb4 {[%emt 0:01:18]} 18. Qb5 {[%emt 0:10:24]} Qxb5 {[%emt 0:01:36]} 19. Nxb5 {[%emt 0:00:01]} Ba6 {[%emt 0:00:07]} 20. Nxa7 {[%emt 0:00:24]} Bxf1 {[%emt 0:00:28]} 21. Kxf1 {[%emt 0:00:03]} Ra8 {[%emt 0:04:47]} 22. Nc6 {[%emt 0:00:58]} Kf8 {[%emt 0:03:57]} 23. Bxb4 {[%emt 0:17:47]} Rxa2 {[%emt 0:02:24]} 24. e5 {[%emt 0:01:52]} Ra1+ {[%emt 0:01:23]} 25. Ne1 {[%emt 0:00:10]} Ke8 {[%emt 0:02:58]} 26. exd6 {[%emt 0:00:33]} exd6 {[%emt 0:00:10]} 27. g3 {[%emt 0:00:45]} Nf6 {[%emt 0:03:59]} 28. c4 {[%emt 0:00:34]} Ne4 {[%emt 0:00:31]} 29. Ke2 {[%emt 0:00:10]} Ra2+ {[%emt 0:04:50]} 30. Ke3 {[%emt 0:00:05]} f5 {[%emt 0:00:13]} 31. Nd3 {[%emt 0:00:19]} Bh6+ {[%emt 0:01:52]} 32. Kd4 {[%emt 0:00:39]} Bg7+ {[%emt 0:03:08]} 33. Ke3 {[%emt 0:00:06]} Rc2 {[%emt 0:00:05]} 34. Na5 {[%emt 0:00:45]} Kd7 {[%emt 0:01:07]} 35. h4 {[%emt 0:01:08]} Bh6+ {[%emt 0:01:45]} 36. Kd4 {[%emt 0:01:21]} Nxf2 37. c5 Bg7+ 38. Ke3 Ng4+ 39. Kf3 Nh2+ 40. Ke3 {[%emt 0:01:27]} Ng4+ {[%emt 0:05:19]} 41. Kf3 {[%emt 0:29:26]} Nh2+ {[%emt 0:30:30]} 42. Ke3 {[%emt 0:01:08]} Bh6+ {[%emt 0:00:23]} 43. Kd4 {[%emt 0:00:00]} Nf3# {[%emt 0:24:40]} 0-1

[Event "18th Charleroi Experts 2019"]
[Site "Charleroi"]
[Date "2019.07.30"]
[Round "5.5"]
[White "Van der Stricht, Geert"]
[Black "Ringoir, Tanguy"]
[Result "1/2-1/2"]
[ECO "D85"]
[WhiteElo "2374"]
[BlackElo "2503"]
[Annotator "ChessBase"]
[PlyCount "40"]
[EventDate "2019.07.22"]
[EventType "tourn"]
[EventCountry "BEL"]
[SourceTitle "playchess.com"]
[Source "ChessBase"]
[SourceQuality "1"]
[TimeControl "40/5400+30:1800+30"]

1. d4 {[%emt 0:00:00]} Nf6 {[%emt 0:00:00]} 2. c4 {[%emt 0:00:00]} g6 {[%emt 0:00:00]} 3. Nc3 {[%emt 0:00:21]} d5 {[%emt 0:00:00]} 4. cxd5 {[%emt 0:05:09]} Nxd5 {[%emt 0:00:06]} 5. e4 {[%emt 0:00:06]} Nxc3 {[%emt 0:00:04]} 6. bxc3 {[%emt 0:00:03]} Bg7 {[%emt 0:00:06]} 7. Be3 {[%emt 0:00:20]} c5 {[%emt 0:00:17]} 8. Rc1 {[%emt 0:00:44]} Qa5 {[%emt 0:01:04]} 9. Qd2 {[%emt 0:00:14]} cxd4 {[%emt 0:00:34]} 10. cxd4 {[%emt 0:00:06]} Qxd2+ {[%emt 0:00:04]} 11. Bxd2 {[%emt 0:01:09]} O-O {[%emt 0:00:08]} 12. Nf3 {[%emt 0:01:48]} e6 {[%emt 0:00:22]} 13. Bb5 {[%emt 0:09:02]} Nc6 {[%emt 0:00:05]} 14. Be3 {[%emt 0:01:04]} Rd8 {[%emt 0:07:07]} 15. Bxc6 {[%emt 0:01:12]} bxc6 {[%emt 0:00:03]} 16. O-O {[%emt 0:00:51]} Ba6 {[%emt 0:04:30]} 17. Rfd1 {[%emt 0:07:14]} Bb5 {[%emt 0:00:35]} 18. Ne5 {[%emt 0:07:03]} Rac8 {[%emt 0:00:50]} 19. f4 {[%emt 0:16:41]} a5 {[%emt 0:27:24]} 20. Rd2 {[%emt 0:14:05]} Bf8 {[%emt 0:09:21]} 1/2-1/2

[Event "18th Charleroi Experts 2019"]
[Site "Charleroi"]
[Date "2019.07.31"]
[Round "6.3"]
[White "Hamblok, Roel"]
[Black "Real, Thibault"]
[Result "1/2-1/2"]
[ECO "A46"]
[WhiteElo "2261"]
[BlackElo "2262"]
[Annotator "NA"]
[PlyCount "59"]
[EventDate "2019.07.22"]
[EventType "tourn"]
[EventCountry "BEL"]
[SourceTitle "playchess.com"]
[Source "ChessBase"]
[SourceQuality "1"]
[TimeControl "40/5400+30:1800+30"]

1. d4 {[%emt 0:00:00]} Nf6 {[%emt 0:00:42]} 2. Nf3 {[%emt 0:00:00]} d5 {[%emt 0:00:04]} 3. g3 {[%emt 0:00:00]} e6 {[%emt 0:00:12]} 4. Bg2 {[%emt 0:00:04]} Be7 {[%emt 0:00:14]} 5. O-O {[%emt 0:00:07]} b5 {[%emt 0:00:25]} 6. a4 {[%emt 0:00:11]} b4 {[%emt 0:05:23]} 7. c4 {[%emt 0:01:02]} bxc3 {[%emt 0:10:54]} 8. Nxc3 {[%emt 0:00:22]} a5 {[%emt 0:05:48]} 9. Bf4 {[%emt 0:02:31]} c6 {[%emt 0:13:18]} 10. Ne5 {[%emt 0:11:38]} O-O {[%emt 0:01:37]} 11. Qb3 {[%emt 0:10:20]} Ba6 {[%emt 0:04:33]} 12. Rfd1 {[%emt 0:03:27]} Nfd7 {[%emt 0:03:02]} 13. e4 {[%emt 0:13:43]} Nxe5 14. dxe5 {[%emt 0:05:03]} Bc4 {[%emt 0:18:45]} 15. Qc2 {[%emt 0:08:41]} Na6 {[%emt 0:00:08]} 16. b3 {[%emt 0:01:56]} Nb4 {[%emt 0:00:18]} 17. Qb1 {[%emt 0:04:30]} Ba6 {[%emt 0:00:05]} 18. Be3 {[%emt 0:03:03]} f6 {[%emt 0:08:38]} 19. exd5 {[%emt 0:07:56]} exd5 {[%emt 0:01:44]} 20. Be4 {[%emt 0:15:04]} fxe5 {[%emt 0:02:49]} 21. Bxh7+ {[%emt 0:00:38]} Kh8 {[%emt 0:00:12]} 22. Bg6 {[%emt 0:00:35]} Bd6 {[%emt 0:01:31]} 23. Rd4 {[%emt 0:03:57]} Qf6 {[%emt 0:05:11]} 24. Rh4+ {[%emt 0:00:59]} Kg8 {[%emt 0:00:05]} 25. Rh5 {[%emt 0:01:36]} Qf3 {[%emt 0:09:02]} 26. Bh7+ {[%emt 0:01:00]} Kh8 {[%emt 0:00:12]} 27. Bg6+ {[%emt 0:01:06]} Kg8 {[%emt 0:00:04]} 28. Bh7+ {[%emt 0:03:06]} Kh8 {[%emt 0:00:01]} 29. Bg6+ {[%emt 0:01:18]} Kg8 {[%emt 0:00:38]} 30. Bh7+ {[%emt 0:00:19]} 1/2-1/2

[Event "18th Charleroi Experts 2019"]
[Site "Charleroi"]
[Date "2019.08.01"]
[Round "7.1"]
[White "Lenaerts, Lennert"]
[Black "Cools, Gorik"]
[Result "1/2-1/2"]
[ECO "A65"]
[WhiteElo "2355"]
[BlackElo "2280"]
[Annotator "NA"]
[PlyCount "96"]
[EventDate "2019.07.22"]
[EventType "tourn"]
[EventCountry "BEL"]
[SourceTitle "playchess.com"]
[Source "ChessBase"]
[SourceQuality "1"]
[TimeControl "40/5400+30:1800+30"]

1. d4 {[%emt 0:00:03]} Nf6 {[%emt 0:00:00]} 2. c4 {[%emt 0:00:20]} g6 {[%emt 0:00:00]} 3. f3 {[%emt 0:00:14]} c5 {[%emt 0:00:05]} 4. d5 {[%emt 0:00:34]} e6 {[%emt 0:00:11]} 5. Nc3 {[%emt 0:01:48]} exd5 {[%emt 0:00:20]} 6. cxd5 {[%emt 0:00:05]} d6 {[%emt 0:00:39]} 7. e4 {[%emt 0:00:12]} Bg7 {[%emt 0:00:14]} 8. Be3 {[%emt 0:00:21]} O-O {[%emt 0:00:08]} 9. Qd2 {[%emt 0:00:22]} Re8 {[%emt 0:02:28]} 10. a4 {[%emt 0:03:42]} Na6 {[%emt 0:13:25]} 11. Nge2 {[%emt 0:04:13]} Nb4 {[%emt 0:07:23]} 12. Nc1 {[%emt 0:01:42]} Nd7 {[%emt 0:02:36]} 13. Be2 {[%emt 0:02:17]} f5 {[%emt 0:03:18]} 14. O-O {[%emt 0:02:20]} fxe4 {[%emt 0:00:11]} 15. Nxe4 {[%emt 0:00:57]} Ne5 {[%emt 0:00:41]} 16. Bg5 {[%emt 0:06:25]} Qc7 {[%emt 0:03:23]} 17. Na2 {[%emt 0:00:37]} Nxa2 {[%emt 0:04:54]} 18. Rxa2 {[%emt 0:00:08]} Rf8 {[%emt 0:01:13]} 19. a5 {[%emt 0:10:21]} Bf5 {[%emt 0:00:59]} 20. Ng3 {[%emt 0:01:45]} Bd7 {[%emt 0:05:15]} 21. Bh6 {[%emt 0:00:48]} Rae8 {[%emt 0:10:15]} 22. Bxg7 {[%emt 0:03:03]} Kxg7 {[%emt 0:00:11]} 23. Ra3 {[%emt 0:03:12]} Nf7 {[%emt 0:30:23]} 24. Ne4 {[%emt 0:07:40]} Bf5 {[%emt 0:01:10]} 25. Qc3+ {[%emt 0:02:30]} Ne5 {[%emt 0:00:10]} 26. Ng3 {[%emt 0:00:35]} Kg8 {[%emt 0:03:56]} 27. f4 {[%emt 0:00:22]} Ng4 {[%emt 0:01:46]} 28. Bxg4 {[%emt 0:22:40]} Bxg4 {[%emt 0:00:02]} 29. h3 {[%emt 0:00:27]} Bf5 {[%emt 0:02:00]} 30. Qd2 {[%emt 0:00:30]} Qf7 {[%emt 0:02:50]} 31. h4 {[%emt 0:00:40]} Be4 {[%emt 0:01:30]} 32. f5 {[%emt 0:02:47]} Qxd5 {[%emt 0:00:05]} 33. Nxe4 {[%emt 0:01:36]} Qxe4 {[%emt 0:00:06]} 34. Qxd6 {[%emt 0:00:36]} Rxf5 {[%emt 0:00:49]} 35. Rxf5 {[%emt 0:00:10]} Qxf5 {[%emt 0:00:10]} 36. Rf3 {[%emt 0:00:02]} Qe5 {[%emt 0:00:58]} 37. Rf8+ {[%emt 0:01:23]} Kg7 {[%emt 0:00:07]} 38. Qxe5+ {[%emt 0:00:07]} Rxe5 {[%emt 0:00:01]} 39. Ra8 {[%emt 0:00:12]} a6 {[%emt 0:00:34]} 40. Rc8 {[%emt 0:00:07]} Kh6 {[%emt 0:04:44]} 41. Rc7 {[%emt 0:30:55]} c4 {[%emt 0:02:39]} 42. Rxb7 {[%emt 0:00:00]} Rxa5 {[%emt 0:00:07]} 43. Rc7 {[%emt 0:00:00]} Ra1+ {[%emt 0:01:13]} 44. Kh2 {[%emt 0:00:00]} Rb1 {[%emt 0:00:10]} 45. Rxc4 {[%emt 0:00:00]} Rxb2 {[%emt 0:00:05]} 46. Rc7 {[%emt 0:00:00]} a5 {[%emt 0:08:18]} 47. Ra7 {[%emt 0:00:00]} Rb5 {[%emt 0:03:54]} 48. g4 {[%emt 0:00:00]} Rb2+ {[%emt 0:04:05]} 1/2-1/2